fUST/lending_fUST_20260101
["ID","MTS","AMOUNT","RATE_DAILY","PERIOD"]
[400260296,1767235994145,500.0,0.00010874,2]
[400260297,1767235994175,500.0,0.00010874,2]
[400260298,1767235994208,395.89026269,0.00010874,2]
[400260299,1767235994238,393.40285661,0.00010874,2]
[400260300,1767235994261,106.59714339,0.00010874,2]
[400260301,1767235994307,482.78503461,0.00010874,2]
[400260302,1767236006195,5000.0,0.00010875,2]
[400260303,1767236009082,438.56120663,0.00010874,2]
[400260304,1767236042346,300.0,0.00010874,2]
[400260305,1767236042521,300.0,0.00010874,2]
[400260306,1767236329173,161.42214135,0.00010817,2]
[400260307,1767236502895,163.276,0.00010657,2]
[400260309,1767236584186,210.65447363,0.00010874,2]
[400260310,1767236669410,161.42214132,0.00010775,2]
[400260311,1767236701323,300.0,0.00010874,2]
[400260312,1767236702080,300.0,0.00010874,2]
[400260313,1767236702224,300.0,0.00010874,2]
[400260314,1767236703297,300.0,0.00010874,2]
[400260315,1767236703623,1475.29185907,0.00010875,2]
[400260316,1767236703647,873.28736359,0.00010875,2]
[400260317,1767236851102,-10074.7734157,0.00010875,2]
[400260318,1767236893549,1200.0,0.00010874,2]
[400260319,1767236922816,7926.72263641,0.00010775,2]
[400260320,1767236922841,10000.01,0.00010775,2]
[400260321,1767236922867,10000.01,0.00010775,2]
[400260322,1767236922892,10000.01,0.00010775,2]
[400260323,1767236922917,10000.01,0.00010775,2]
[400260324,1767236922941,10000.01,0.00010775,2]
[400260325,1767236922966,10000.01,0.00010775,2]
[400260326,1767236922991,10000.01,0.00010775,2]
[400260327,1767236923016,10000.01,0.00010775,2]
[400260328,1767236926428,-222.83310953,0.00010775,2]
[400260329,1767236928722,-317.64684985,0.00010775,2]
[400260330,1767236930100,-503.11240054,0.00010775,2]
[400260331,1767236931675,-625.42610291,0.00010775,2]
[400260332,1767236934466,-231.69814697,0.00010775,2]
[400260333,1767236937654,-192.71981792,0.00010775,2]
[400260334,1767236939255,-302.27713325,0.00010775,2]
[400260335,1767236942432,-509.77538471,0.00010775,2]
[400260336,1767236942588,300.0,0.00010774,2]
[400260337,1767236943047,300.0,0.00010774,2]
[400260338,1767236945798,-544.06,0.00010775,2]
[400260339,1767236947392,-187.23850627,0.00010775,2]
[400260340,1767236949491,-161.02517434,0.00010775,2]
[400260341,1767236950931,-218.71,0.00010775,2]
[400260342,1767236953697,-312.86163821,0.00010775,2]
[400260343,1767236956368,-374.93897584,0.00010775,2]
[400260344,1767236958918,-557.58574659,0.00010775,2]
[400260345,1767236960406,-195.0,0.00010775,2]
[400260346,1767236963570,-326.65483128,0.00010775,2]
[400260347,1767236965119,-37725.59686,0.00010775,2]
[400260348,1767236965150,-42286.92831518,0.00010775,2]
[400260349,1767236965440,-218.83812715,0.00010775,2]
[400260350,1767236969377,-293.98603582,0.00010775,2]
[400260351,1767236971524,-165.21,0.00010775,2]
[400260352,1767236975026,-153.07,0.00010775,2]
[400260353,1767236976182,532.62243159,0.00010775,2]
[400260354,1767236977181,-205.14083363,0.00010775,2]
[400260355,1767236980652,-229.25700954,0.00010775,2]
[400260356,1767236982785,-283.87043382,0.00010775,2]
[400260357,1767236984814,302.22940676,0.00010775,2]
[400260358,1767236984843,-169.32352975,0.00010775,2]
[400260359,1767236986397,-436.9597357,0.00010775,2]
[400260360,1767236989125,-287.49291941,0.00010775,2]
[400260361,1767236990755,-171.12242898,0.00010775,2]
[400260362,1767236993998,-218.16992936,0.00010775,2]
[400260363,1767236996226,-300.0,0.00010775,2]
[400260364,1767236999078,-544.47897982,0.00010775,2]
[400260365,1767237000625,-304.0,0.00010775,2]
[400260366,1767237002167,300.0,0.00010774,2]
[400260367,1767237002770,-247.3539234,0.00010775,2]
[400260368,1767237003339,300.0,0.00010774,2]
[400260369,1767237005457,-300.0,0.00010775,2]
[400260370,1767237005653,1578.29521175,0.00010773,2]
[400260371,1767237007642,-271.0,0.00010775,2]
[400260372,1767237008791,2889.79948302,0.00010775,2]
[400260383,1767237031950,-1002.31568725,0.00010775,2]
[400260411,1767237038034,-598555.36155723,0.00010775,2]
[400260413,1767237038044,-151.48745434,0.00010775,2]
[400260414,1767237038053,-571.0,0.00010775,2]
[400260415,1767237038063,-500.0,0.00010874,2]
[400260416,1767237038072,-500.0,0.00010874,2]
[400260417,1767237038081,-500.0,0.00010874,2]
[400260418,1767237038091,-500.0,0.00010874,2]
[400260419,1767237038101,-500.0,0.00010874,2]
[400260420,1767237038110,-500.0,0.00010874,2]
[400260421,1767237038120,-500.0,0.00010874,2]
[400260422,1767237038129,-500.0,0.00010874,2]
[400260423,1767237038138,-500.0,0.00010874,2]
[400260424,1767237038147,-333.2532357,0.00010874,2]
[400260425,1767237038157,-500.0,0.00010874,2]
[400260426,1767237038167,-500.0,0.00010874,2]
[400260427,1767237038176,-500.0,0.00010874,2]
[400260428,1767237038186,-500.0,0.00010874,2]
[400260429,1767237038195,-500.0,0.00010874,2]
[400260430,1767237038204,-500.0,0.00010874,2]
[400260431,1767237038213,-500.0,0.00010874,2]
[400260432,1767237038223,-302.27853147,0.00010874,2]
[400260433,1767237038232,-500.0,0.00010874,2]
[400260434,1767237038242,-205.54273365,0.00010874,2]
[400260435,1767237038251,-259.16026189,0.00010874,2]
[400260436,1767237038260,-500.0,0.00010959,2]
[400260437,1767237038270,-500.0,0.00010959,2]
[400260438,1767237038279,-439.22962976,0.00010959,2]
[400260439,1767237038289,-4495.1482399,0.00011083,2]
[400260440,1767237038298,-420.0,0.00011842,2]
[400260441,1767237038309,-150.0,0.00012276,2]
[400260442,1767237038318,-6992.4416209,0.00012312,2]
[400260443,1767237038327,-194.39325159,0.00012506,2]
[400260444,1767237038337,-192.45320861,0.00012506,2]
[400260445,1767237038347,-178.75519612,0.00012775,2]
[400260446,1767237038356,-37019.85504563,0.00012875,2]
[400260447,1767237038369,-7256.77361737,0.00012875,2]
[400260448,1767237038380,-5723.371337,0.00012875,2]
[400260449,1767237038390,-587.0,0.00013016,2]
[400260450,1767237038400,-500.0,0.00013273,2]
[400260451,1767237038409,-172.22882441,0.00013273,2]
[400260452,1767237038419,-500.0,0.00013273,2]
[400260453,1767237038428,-501.13693143,0.00013273,2]
[400260454,1767237038439,-500.0,0.00013273,2]
[400260455,1767237038449,-500.0,0.00013273,2]
[400260456,1767237038461,-502.75329392,0.00013273,2]
[400260457,1767237038471,-587.75892245,0.00013273,2]
[400260458,1767237038481,-500.0,0.00013273,2]
[400260459,1767237038491,-501.74485586,0.00013273,2]
[400260460,1767237038501,-500.0,0.00013273,2]
[400260461,1767237038511,-500.0,0.00013273,2]
[400260462,1767237038520,-500.0,0.00013273,2]
[400260463,1767237038529,-500.0,0.00013273,2]
[400260464,1767237038539,-502.11492454,0.00013273,2]
[400260465,1767237038554,-215.55127234,0.00013273,2]
[400260466,1767237038563,-500.0,0.00013273,2]
[400260467,1767237038573,-500.0,0.00013273,2]
[400260468,1767237038583,-160.94,0.00013392,2]
[400260469,1767237038593,-10000.0,0.0001354,2]
[400260470,1767237038603,-300.0,0.00013673,2]
[400260471,1767237038612,-500.0,0.00013698,2]
[400260472,1767237038624,-500.0,0.00013698,2]
[400260473,1767237038633,-500.0,0.00013698,2]
[400260474,1767237038643,-500.0,0.00013698,2]
[400260475,1767237038652,-500.0,0.00013698,2]
[400260476,1767237038661,-500.0,0.00013698,2]
[400260477,1767237038671,-500.0,0.00013698,2]
[400260478,1767237038680,-500.0,0.00013698,2]
[400260479,1767237038690,-500.0,0.00013698,2]
[400260480,1767237038699,-500.0,0.00013698,2]
[400260481,1767237038709,-111.82094331,0.00013698,2]
[400260482,1767237038721,-388.17905669,0.00013698,2]
[400260483,1767237038730,-500.0,0.00013698,2]
[400260484,1767237038740,-500.0,0.00013698,2]
[400260485,1767237038749,-500.0,0.00013698,2]
[400260486,1767237038759,-500.0,0.00013698,2]
[400260487,1767237038768,-500.0,0.00013698,2]
[400260488,1767237038778,-500.0,0.00013698,2]
[400260489,1767237038787,-500.0,0.00013698,2]
[400260490,1767237038796,-431.46701577,0.00013698,2]
[400260491,1767237038806,-500.0,0.00013698,2]
[400260492,1767237038815,-500.0,0.00013698,2]
[400260493,1767237038824,-500.0,0.00013698,2]
[400260494,1767237038833,-500.0,0.00013698,2]
[400260495,1767237038843,-500.0,0.00013698,2]
[400260496,1767237038854,-500.0,0.00013698,2]
[400260497,1767237038863,-500.0,0.00013698,2]
[400260498,1767237038873,-518.1178599,0.00013698,2]
[400260499,1767237038882,-500.0,0.00013699,2]
[400260500,1767237038892,-501.88622503,0.00013699,2]
[400260501,1767237038902,-500.0,0.00013699,2]
[400260502,1767237038911,-500.41619703,0.00013699,2]
[400260503,1767237038921,-159.44586033,0.00013699,2]
[400260504,1767237038930,-500.0,0.00013699,2]
[400260505,1767237038940,-636.81503696,0.00013699,2]
[400260506,1767237038949,-500.0,0.00013699,2]
[400260507,1767237038959,-501.19324627,0.00013699,2]
[400260508,1767237038968,-500.13588994,0.00013699,2]
[400260509,1767237038978,-500.41151403,0.00013699,2]
[400260510,1767237038987,-173.39877049,0.00013699,2]
[400260511,1767237038996,-500.85679004,0.00013699,2]
[400260512,1767237039006,-500.41688531,0.00013699,2]
[400260513,1767237039015,-518.86875969,0.00013699,2]
[400260514,1767237039024,-502.11785736,0.00013699,2]
[400260515,1767237039034,-166.19145525,0.00013699,2]
[400260516,1767237039043,-501.04622442,0.00013699,2]
[400260517,1767237039052,-500.0,0.00013699,2]
[400260518,1767237039062,-455.98824262,0.00013699,2]
[400260519,1767237039071,-501.99402388,0.00013699,2]
[400260520,1767237039080,-500.0,0.00013699,2]
[400260521,1767237039089,-500.0,0.00013699,2]
[400260522,1767237039099,-524.09643876,0.00013699,2]
[400260523,1767237039109,-500.0,0.00013699,2]
[400260524,1767237039118,-502.28981884,0.00013699,2]
[400260525,1767237039127,-500.0,0.00013699,2]
[400260526,1767237039136,-501.08925987,0.00013699,2]
[400260527,1767237039145,-500.0,0.00013699,2]
[400260528,1767237039155,-599.57930463,0.00013699,2]
[400260529,1767237039164,-500.61963752,0.00013699,2]
[400260530,1767237039174,-223.82380689,0.00013699,2]
[400260531,1767237039184,-500.0,0.00013699,2]
[400260532,1767237039194,-500.0,0.00013699,2]
[400260533,1767237039204,-514.48370716,0.00013699,2]
[400260534,1767237039213,-523.75318746,0.00013699,2]
[400260535,1767237039223,-500.0,0.00013699,2]
[400260536,1767237039232,-507.85472155,0.00013699,2]
[400260537,1767237039242,-500.0,0.00013699,2]
[400260538,1767237039251,-500.0,0.00013699,2]
[400260539,1767237039261,-500.0,0.00013699,2]
[400260540,1767237039270,-268.44425948,0.00013699,2]
[400260541,1767237039279,-294.403954,0.00013806,2]
[400260542,1767237039289,-499.60347753,0.00013821,2]
[400260543,1767237039298,-1000.0,0.00013821,2]
[400260544,1767237039307,-1001.86225518,0.00013821,2]
[400260545,1767237039317,-1000.0,0.00013821,2]
[400260546,1767237039326,-502.12447258,0.00013821,2]
[400260547,1767237039336,-1000.0,0.00013821,2]
[400260548,1767237039345,-1000.0,0.00013821,2]
[400260549,1767237039354,-504.66713546,0.00013821,2]
[400260550,1767237039364,-1000.0,0.00013821,2]
[400260551,1767237039374,-376.32492705,0.00013821,2]
[400260552,1767237039383,-501.2387356,0.00013821,2]
[400260553,1767237039393,-600.0,0.00014221,2]
[400260554,1767237039403,-1000.0,0.00014247,2]
[400260555,1767237039413,-1000.0,0.00014247,2]
[400260556,1767237039422,-1001.2918638,0.00014247,2]
[400260557,1767237039431,-1000.0,0.00014247,2]
[400260558,1767237039440,-981.71963328,0.00014247,2]
[400260559,1767237039450,-1002.15696691,0.00014247,2]
[400260560,1767237039459,-1000.0,0.00014247,2]
[400260561,1767237039468,-633.76515687,0.00014247,2]
[400260562,1767237039478,-1000.0,0.00014247,2]
[400260563,1767237039487,-1000.0,0.00014247,2]
[400260564,1767237039496,-1000.0,0.00014247,2]
[400260565,1767237039505,-1000.0,0.00014247,2]
[400260566,1767237039514,-1000.0,0.00014247,2]
[400260567,1767237039524,-508.35491753,0.00014247,2]
[400260568,1767237039533,-192.65004867,0.00014247,2]
[400260569,1767237039544,-1500.0,0.00014368,2]
[400260570,1767237039555,-502.09210959,0.00014368,2]
[400260571,1767237039564,-530.40558362,0.00014368,2]
[400260572,1767237039573,-1315.89394303,0.00014368,2]
[400260573,1767237039584,-1004.70215237,0.00014368,2]
[400260574,1767237039593,-241.42,0.00014508,2]
[400260575,1767237039603,-206.0229379,0.00014775,2]
[400260576,1767237039613,-81796.15397321,0.00014882,2]
[400260577,1767237039623,-321.89,0.00015624,2]
[400260578,1767237039632,-7285.1114759,0.00015979,2]
[400260579,1767237039641,-1578.29521173,0.00016029,2]
[400260580,1767237039651,-186.88038639,0.00016438,2]
[400260581,1767237039660,-402.36,0.0001674,2]
[400260582,1767237039669,-233.29067968,0.00016775,2]
[400260583,1767237039679,-1041.66666667,0.00018293,2]
[400260584,1767237039688,-260.55842146,0.00018775,2]
[400260585,1767237039697,-438.16,0.000198,2]
[400260586,1767237039706,-9880.36,0.000198,2]
[400260587,1767237039715,-2785.0152497,0.00020536,2]
[400260588,1767237039724,-294.403954,0.00020709,2]
[400260589,1767237039733,-287.82616324,0.00020775,2]
[400260590,1767237039742,-194.58764484,0.0002103,2]
[400260591,1767237039751,-192.64566182,0.0002103,2]
[400260592,1767237039760,-1578.29521173,0.00021285,2]
[400260593,1767237039769,-168.0,0.00021821,2]
[400260594,1767237039779,-500.0,0.00021917,2]
[400260595,1767237039788,-500.0,0.00021917,2]
[400260596,1767237039797,-500.0,0.00021917,2]
[400260597,1767237039806,-768.62,0.00021917,2]
[400260598,1767237039815,-1178.43,0.00021917,2]
[400260599,1767237039824,-721.62,0.00021917,2]
[400260600,1767237039833,-500.0,0.00021917,2]
[400260601,1767237039842,-500.0,0.00021917,2]
[400260602,1767237039852,-500.0,0.00021917,2]
[400260603,1767237039862,-500.0,0.00021917,2]
[400260604,1767237039871,-500.0,0.00021917,2]
[400260605,1767237039881,-500.0,0.00021917,2]
[400260606,1767237039890,-154.68,0.00022,7]
[400260607,1767237039899,-227.38,0.00022,2]
[400260608,1767237039908,-168.0,0.00022079,2]
[400260609,1767237039918,-500.0,0.00022191,2]
[400260610,1767237039927,-568.66332417,0.00022191,2]
[400260611,1767237039936,-500.0,0.00022191,2]
[400260612,1767237039945,-768.62,0.00022191,2]
[400260613,1767237039954,-1178.43,0.00022191,2]
[400260614,1767237039963,-721.62,0.00022191,2]
[400260615,1767237039972,-469.03789258,0.00022191,2]
[400260617,1767237039982,-500.0,0.00022191,2]
[400260618,1767237039991,-500.0,0.00022191,2]
[400260619,1767237040000,-500.0,0.00022191,2]
[400260620,1767237040009,-500.0,0.00022191,2]
[400260621,1767237040018,-500.0,0.00022191,2]
[400260622,1767237040027,-150.143,0.00022203,2]
[400260623,1767237040036,-416.0,0.00022203,2]
[400260624,1767237040045,-416.0,0.00022203,2]
[400260625,1767237040054,-168.0,0.00022355,2]
[400260626,1767237040063,-168.0,0.00022371,2]
[400260627,1767237040072,-500.0,0.00022465,2]
[400260629,1767237040081,-500.0,0.00022465,2]
[400260630,1767237040090,-768.62,0.00022465,2]
[400260631,1767237040099,-1178.43,0.00022465,2]
[400260632,1767237040108,-721.62,0.00022465,2]
[400260633,1767237040118,-500.0,0.00022465,2]
[400260634,1767237040127,-500.0,0.00022465,2]
[400260635,1767237040136,-246.25540048,0.00022465,2]
[400260636,1767237040145,-500.0,0.00022465,2]
[400260637,1767237040155,-500.0,0.00022465,2]
[400260638,1767237040163,-168.0,0.00022472,2]
[400260639,1767237040172,-168.0,0.00022704,2]
[400260640,1767237040181,-500.0,0.00022739,2]
[400260641,1767237040190,-500.0,0.00022739,2]
[400260642,1767237040200,-768.62,0.00022739,2]
[400260643,1767237040209,-1178.43,0.00022739,2]
[400260644,1767237040218,-721.62,0.00022739,2]
[400260645,1767237040227,-500.0,0.00022739,2]
[400260647,1767237040237,-500.0,0.00022739,2]
[400260648,1767237040245,-500.0,0.00022739,2]
[400260649,1767237040255,-500.0,0.00022739,2]
[400260650,1767237040264,-187.48770083,0.0002277,2]
[400260651,1767237040273,-315.09390502,0.00022775,2]
[400260652,1767237040282,-311.0,0.00022877,8]
[400260653,1767237040292,-150.0,0.00023,10]
[400260654,1767237040301,-241.73455576,0.00023013,2]
[400260655,1767237040311,-500.0,0.00023013,2]
[400260656,1767237040320,-768.62,0.00023013,2]
[400260657,1767237040329,-1178.43,0.00023013,2]
[400260658,1767237040339,-721.62,0.00023013,2]
[400260659,1767237040349,-500.0,0.00023013,2]
[400260660,1767237040359,-500.0,0.00023013,2]
[400260661,1767237040368,-500.0,0.00023013,2]
[400260662,1767237040378,-603.74326739,0.00023013,2]
[400260663,1767237040389,-9880.36,0.000231,2]
[400260664,1767237040401,-500.0,0.00023287,2]
[400260665,1767237040412,-768.62,0.00023287,2]
[400260666,1767237040425,-1178.43,0.00023287,2]
[400260667,1767237040435,-721.62,0.00023287,2]
[400260668,1767237040444,-285.59724869,0.00023287,2]
[400260669,1767237040454,-254.90890426,0.00023287,2]
[400260670,1767237040463,-346.35161732,0.00023287,2]
[400260671,1767237040472,-168.0,0.00023419,2]
[400260672,1767237040482,-265.41032984,0.00023561,2]
[400260673,1767237040491,-768.62,0.00023561,2]
[400260674,1767237040501,-1178.43,0.00023561,2]
[400260675,1767237040510,-721.62,0.00023561,2]
[400260676,1767237040520,-168.0,0.00023619,2]
[400260677,1767237040530,-168.0,0.0002368,2]
[400260678,1767237040540,-1000.0,0.00023831,5]
[400260679,1767237040553,-768.62,0.00023835,2]
[400260680,1767237040563,-1178.43,0.00023835,2]
[400260681,1767237040573,-721.62,0.00023835,2]
[400260682,1767237040582,-768.62,0.00024109,2]
[400260683,1767237040593,-1178.43,0.00024109,2]
[400260684,1767237040703,-721.62,0.00024109,2]
[400260685,1767237040713,-768.62,0.00024383,2]
[400260686,1767237040724,-1178.43,0.00024383,2]
[400260687,1767237040734,-721.62,0.00024383,2]
[400260688,1767237040748,-160.0,0.00024541,3]
[400260689,1767237040761,-438.16,0.000246,14]
[400260690,1767237040770,-151.0,0.00024615,2]
[400260691,1767237040780,-275.07279249,0.00024642,2]
[400260692,1767237040789,-768.62,0.00024657,2]
[400260693,1767237040798,-1178.43,0.00024657,2]
[400260694,1767237040808,-721.62,0.00024657,2]
[400260695,1767237040817,-150.0,0.00024743,2]
[400260696,1767237040826,-1364.0,0.00024743,2]
[400260697,1767237040835,-628.0,0.00024743,2]
[400260698,1767237040844,-2157.0,0.00024743,2]
[400260699,1767237040853,-342.3616468,0.00024775,2]
[400260700,1767237040863,-440428.99272,0.000249,2]
[400260701,1767237040872,-768.62,0.00024931,2]
[400260702,1767237040881,-1178.43,0.00024931,2]
[400260703,1767237040891,-721.62,0.00024931,2]
[400260704,1767237040900,-154.68,0.00025,7]
[400260705,1767237040909,-227.38,0.00025,2]
[400260706,1767237040918,-176.0,0.00025068,15]
[400260707,1767237040927,-160.0,0.00025094,6]
[400260708,1767237040936,-150.0,0.00025203,2]
[400260709,1767237040946,-416.0,0.00025203,2]
[400260710,1767237040955,-416.0,0.00025203,2]
[400260711,1767237040964,-768.62,0.00025205,2]
[400260712,1767237040973,-1178.43,0.00025205,2]
[400260713,1767237040982,-721.62,0.00025205,2]
[400260714,1767237040991,-768.62,0.00025479,2]
[400260715,1767237041000,-1178.43,0.00025479,2]
[400260716,1767237041010,-721.62,0.00025479,2]
[400260717,1767237041019,-9880.36,0.000255,2]
[400260718,1767237041028,-275.07279247,0.00025584,2]
[400260719,1767237041038,-179.7943848,0.00025616,2]
[400260720,1767237041047,-153.0,0.00025616,2]
[400260721,1767237041056,-160.0,0.00025646,7]
[400260722,1767237041065,-612.9443202,0.00025671,2]
[400260723,1767237041074,-500.0,0.00025753,7]
[400260724,1767237041083,-768.62,0.00025753,2]
[400260725,1767237041092,-1178.43,0.00025753,2]
[400260726,1767237041102,-721.62,0.00025753,2]
[400260727,1767237041112,-768.62,0.00026027,2]
[400260728,1767237041121,-1178.43,0.00026027,2]
[400260729,1767237041130,-721.62,0.00026027,2]
[400260730,1767237041139,-153.0,0.00026164,2]
[400260731,1767237041148,-153.0,0.00026164,2]
[400260732,1767237041157,-153.0,0.00026164,2]
[400260733,1767237041167,-153.0,0.00026164,2]
[400260734,1767237041176,-153.0,0.00026164,2]
[400260735,1767237041185,-154.486264,0.00026164,2]
[400260736,1767237041194,-153.0,0.00026164,2]
[400260737,1767237041203,-160.0,0.00026199,8]
[400260738,1767237041212,-213.83672649,0.00026199,5]
[400260739,1767237041221,-160.0,0.00026199,4]
[400260740,1767237041231,-160.0,0.00026199,5]
[400260741,1767237041240,-151.0,0.00026213,2]
[400260742,1767237041249,-768.62,0.00026301,2]
[400260743,1767237041258,-1178.43,0.00026301,2]
[400260744,1767237041268,-721.62,0.00026301,2]
[400260745,1767237041277,-191.55525478,0.00026302,2]
[400260746,1767237041287,-280.59507145,0.00026302,2]
[400260747,1767237041296,-150.0,0.00026302,2]
[400260748,1767237041305,-180.71456248,0.00026302,2]
[400260749,1767237041314,-157.27678539,0.00026302,2]
[400260750,1767237041323,-166.29966375,0.00026302,2]
[400260751,1767237041332,-150.0,0.00026439,2]
[400260752,1767237041342,-275.07279247,0.00026526,2]
[400260753,1767237041351,-1578.29521173,0.0002654,2]
[400260754,1767237041361,-768.62,0.00026575,2]
[400260755,1767237041370,-1178.43,0.00026575,2]
[400260756,1767237041380,-721.62,0.00026575,2]
[400260757,1767237041389,-150.0,0.00026576,2]
[400260758,1767237041399,-438.16,0.000266,14]
[400260759,1767237041408,-376.3998898,0.0002663,2]
[400260760,1767237041418,-376.3998898,0.0002663,2]
[400260761,1767237041428,-376.3998898,0.0002663,2]
[400260762,1767237041437,-376.3998898,0.0002663,2]
[400260763,1767237041447,-376.3998898,0.0002663,2]
[400260764,1767237041457,-376.3998898,0.0002663,2]
[400260765,1767237041466,-376.3998898,0.0002663,2]
[400260766,1767237041476,-942.76509,0.00026676,2]
[400260767,1767237041486,-150.0,0.00026713,2]
[400260768,1767237041495,-369.62938858,0.00026775,2]
[400260769,1767237041505,-768.62,0.00026849,2]
[400260770,1767237041514,-1178.43,0.00026849,2]
[400260771,1767237041523,-721.62,0.00026849,2]
[400260772,1767237041533,-1029.08549593,0.00026849,2]
[400260773,1767237041542,-150.0,0.0002685,2]
[400260774,1767237041554,-250.0,0.00026987,2]
[400260775,1767237041563,-154.68,0.00027,7]
[400260776,1767237041573,-227.38,0.00027,2]
[400260777,1767237041583,-768.62,0.00027123,2]
[400260778,1767237041593,-1178.43,0.00027123,2]
[400260779,1767237041603,-721.62,0.00027123,2]
[400260780,1767237041613,-195.0,0.0002726,24]
[400260781,1767237041622,-9880.36,0.000273,2]
[400260782,1767237041632,-768.62,0.00027397,2]
[400260783,1767237041641,-1178.43,0.00027397,2]
[400260784,1767237041651,-721.62,0.00027397,2]
[400260785,1767237041660,-156.63348477,0.00027397,2]
[400260786,1767237041669,-501.34430867,0.00027397,5]
[400260787,1767237041678,-151.4196909,0.00027397,5]
[400260788,1767237041687,-150.0,0.00027397,5]
[400260789,1767237041696,-275.07279247,0.00027468,2]
[400260790,1767237041705,-17108.0,0.000275,10]
[400260791,1767237041714,-743.0,0.000275,10]
[400260792,1767237041724,-376.3998898,0.00027589,30]
[400260793,1767237041734,-376.3998898,0.00027589,30]
[400260794,1767237041743,-376.3998898,0.00027589,30]
[400260795,1767237041752,-376.3998898,0.00027589,30]
[400260796,1767237041761,-752.7997796,0.00027589,30]
[400260797,1767237041770,-376.3998898,0.00027589,30]
[400260798,1767237041779,-376.458701,0.00027589,30]
[400260799,1767237041788,-768.62,0.00027671,2]
[400260800,1767237041797,-1178.43,0.00027671,2]
[400260801,1767237041808,-721.62,0.00027671,2]
[400260802,1767237041817,-1500.0,0.00027701,7]
[400260803,1767237041826,-500.0,0.0002774,7]
[400260804,1767237041836,-150.0,0.00027743,2]
[400260805,1767237041845,-1364.0,0.00027743,2]
[400260806,1767237041855,-628.0,0.00027743,2]
[400260807,1767237041864,-2157.0,0.00027743,2]
[400260808,1767237041873,-1500.0,0.0002776,7]
[400260809,1767237041882,-503.43207227,0.0002776,20]
[400260810,1767237041892,-151.0,0.00027812,2]
[400260811,1767237041902,-584.83532386,0.00027945,14]
[400260812,1767237041911,-768.62,0.00027945,2]
[400260813,1767237041920,-1178.43,0.00027945,2]
[400260814,1767237041930,-721.62,0.00027945,2]
[400260815,1767237041939,-154.92083841,0.00027945,5]
[400260816,1767237041950,-5058.31950271,0.00027987,13]
[400260817,1767237041963,-2000.0,0.00028032,7]
[400260818,1767237041975,-2000.0,0.00028041,7]
[400260819,1767237041988,-2000.0,0.0002805,7]
[400260820,1767237042000,-2000.0,0.00028051,7]
[400260821,1767237042012,-2000.0,0.00028059,7]
[400260822,1767237042022,-2000.0,0.0002806,7]
[400260823,1767237042032,-2000.0,0.00028067,7]
[400260824,1767237042044,-2000.0,0.00028068,7]
[400260825,1767237042056,-2000.0,0.00028076,7]
[400260826,1767237042067,-2000.0,0.00028076,7]
[400260827,1767237042078,-2000.0,0.00028077,7]
[400260828,1767237042090,-2000.0,0.00028085,7]
[400260829,1767237042103,-2000.0,0.00028085,7]
[400260830,1767237042114,-2000.0,0.00028086,7]
[400260831,1767237042126,-2000.0,0.00028094,7]
[400260832,1767237042137,-2000.0,0.00028094,7]
[400260833,1767237042149,-2000.0,0.00028095,7]
[400260834,1767237042161,-2000.0,0.00028103,7]
[400260835,1767237042172,-2000.0,0.00028103,7]
[400260836,1767237042183,-2000.0,0.00028103,7]
[400260837,1767237042194,-2000.0,0.00028104,7]